[Event "GER-chW Blitz 2019"]
[Site "Magdeburg"]
[Date "2019.05.25"]
[Round "5.4"]
[White "Rath, Alina"]
[Black "Osmanodja, Filiz"]
[Result "0-1"]
[ECO "A36"]
[WhiteElo "2042"]
[BlackElo "2260"]
[Annotator "NA"]
[PlyCount "72"]
[EventDate "2019.05.25"]
[EventType "tourn"]
[EventCountry "GER"]
[SourceTitle "playchess.com"]
[Source "ChessBase"]
[SourceQuality "1"]
[TimeControl "180+2"]

1. c4 {[%emt 0:00:00]} c5 {[%emt 0:00:01]} 2. Nc3 {[%emt 0:00:00]} Nc6 {[%emt 0:00:01]} 3. g3 {[%emt 0:00:01]} g6 {[%emt 0:00:01]} 4. Bg2 {[%emt 0:00:01]} Bg7 {[%emt 0:00:00]} 5. e4 {[%emt 0:00:01]} e6 {[%emt 0:00:06]} 6. Nge2 {[%emt 0:00:01]} Nge7 {[%emt 0:00:00]} 7. O-O {[%emt 0:00:01]} O-O {[%emt 0:00:01]} 8. d3 {[%emt 0:00:01]} Nd4 {[%emt 0:00:04]} 9. Be3 {[%emt 0:00:01]} a6 {[%emt 0:00:14]} 10. Qd2 {[%emt 0:00:01]} Rb8 {[%emt 0:00:26]} 11. Bh6 {[%emt 0:00:06]} b5 {[%emt 0:00:04]} 12. Bxg7 {[%emt 0:00:02]} Kxg7 {[%emt 0:00:01]} 13. b3 {[%emt 0:00:01]} b4 {[%emt 0:00:07]} 14. Nd1 {[%emt 0:00:02]} Nec6 {[%emt 0:00:09]} 15. f4 {[%emt 0:00:02]} f5 {[%emt 0:00:04]} 16. Ne3 {[%emt 0:00:10]} Nxe2+ {[%emt 0:00:03]} 17. Qxe2 {[%emt 0:00:01]} Nd4 {[%emt 0:00:01]} 18. Qd2 {[%emt 0:00:01]} Bb7 {[%emt 0:00:08]} 19. Nc2 {[%emt 0:00:03]} a5 {[%emt 0:00:11]} 20. Nxd4 {[%emt 0:00:02]} cxd4 {[%emt 0:00:01]} 21. Rae1 {[%emt 0:00:09]} Qb6 {[%emt 0:00:11]} 22. e5 {[%emt 0:00:11]} Bxg2 {[%emt 0:00:07]} 23. Qxg2 {[%emt 0:00:01]} a4 {[%emt 0:00:11]} 24. Rc1 {[%emt 0:00:05]} axb3 {[%emt 0:00:11]} 25. axb3 {[%emt 0:00:01]} Ra8 {[%emt 0:00:02]} 26. Rf2 {[%emt 0:00:02]} Ra3 {[%emt 0:00:03]} 27. Rb2 {[%emt 0:00:01]} Rfa8 {[%emt 0:00:05]} 28. h3 {[%emt 0:00:12]} Qa6 {[%emt 0:00:26]} 29. Qd2 {[%emt 0:00:11]} Ra1 {[%emt 0:00:14]} 30. Rbb1 {[%emt 0:00:11]} Qa2 {[%emt 0:00:10]} 31. Qxa2 {[%emt 0:00:15]} R1xa2 32. Rd1 {[%emt 0:00:09]} R8a3 {[%emt 0:00:09]} 33. h4 {[%emt 0:00:05]} Kf7 {[%emt 0:00:04]} 34. Kf1 {[%emt 0:00:02]} Rc2 {[%emt 0:00:02]} 35. Rdc1 {[%emt 0:00:12]} Rc3 {[%emt 0:00:12]} 36. Ke2 {[%emt 0:00:08]} Ra2+ 0-1

[Event "GER-chW Blitz 2019"]
[Site "Magdeburg"]
[Date "2019.05.25"]
[Round "5.5"]
[White "Silz, Elisa"]
[Black "Sieber, Fiona"]
[Result "0-1"]
[ECO "E15"]
[WhiteElo "1977"]
[BlackElo "2250"]
[Annotator "NA"]
[PlyCount "114"]
[EventDate "2019.05.25"]
[EventType "tourn"]
[EventCountry "GER"]
[SourceTitle "playchess.com"]
[Source "ChessBase"]
[SourceQuality "1"]
[TimeControl "180+2"]

1. d4 {[%emt 0:00:00]} Nf6 {[%emt 0:00:00]} 2. Nf3 {[%emt 0:00:00]} e6 {[%emt 0:00:01]} 3. c4 {[%emt 0:00:00]} b6 {[%emt 0:00:01]} 4. g3 {[%emt 0:00:01]} Ba6 {[%emt 0:00:02]} 5. Qc2 {[%emt 0:00:02]} Bb7 {[%emt 0:00:09]} 6. Bg2 {[%emt 0:00:01]} c5 {[%emt 0:00:01]} 7. O-O {[%emt 0:00:03]} cxd4 {[%emt 0:00:06]} 8. Nxd4 {[%emt 0:00:03]} Bxg2 {[%emt 0:00:02]} 9. Kxg2 {[%emt 0:00:01]} Qc8 {[%emt 0:00:01]} 10. b3 {[%emt 0:00:10]} Nc6 {[%emt 0:00:10]} 11. Nb5 {[%emt 0:00:08]} Qb7 {[%emt 0:00:05]} 12. f3 {[%emt 0:00:10]} a6 {[%emt 0:00:02]} 13. N5c3 {[%emt 0:00:03]} Nd4 {[%emt 0:00:11]} 14. Qd3 {[%emt 0:00:09]} Nc6 {[%emt 0:00:11]} 15. Bg5 {[%emt 0:00:10]} Be7 {[%emt 0:00:01]} 16. Nd2 {[%emt 0:00:05]} O-O {[%emt 0:00:05]} 17. e4 {[%emt 0:00:11]} Rfd8 {[%emt 0:00:17]} 18. Qe3 {[%emt 0:00:14]} Bc5 {[%emt 0:00:23]} 19. Qe1 {[%emt 0:00:10]} Bd4 {[%emt 0:00:06]} 20. Rc1 {[%emt 0:00:05]} Nb4 {[%emt 0:00:14]} 21. Qe2 {[%emt 0:00:14]} h6 {[%emt 0:00:17]} 22. Bxf6 {[%emt 0:00:04]} Bxf6 {[%emt 0:00:01]} 23. e5 {[%emt 0:00:05]} Be7 {[%emt 0:00:03]} 24. Nde4 {[%emt 0:00:08]} d6 {[%emt 0:00:09]} 25. exd6 {[%emt 0:00:04]} Bxd6 {[%emt 0:00:01]} 26. Nxd6 {[%emt 0:00:02]} Rxd6 {[%emt 0:00:01]} 27. Ne4 {[%emt 0:00:02]} Rd7 {[%emt 0:00:02]} 28. Rfd1 {[%emt 0:00:06]} Rad8 {[%emt 0:00:01]} 29. a3 Nd3 {[%emt 0:00:06]} 30. Rb1 {[%emt 0:00:20]} Rd4 {[%emt 0:00:10]} 31. Nc3 {[%emt 0:00:18]} Qd7 {[%emt 0:00:04]} 32. Rf1 {[%emt 0:00:05]} Nc5 {[%emt 0:00:04]} 33. Rbd1 {[%emt 0:00:10]} Nxb3 {[%emt 0:00:05]} 34. Rxd4 {[%emt 0:00:05]} Nxd4 {[%emt 0:00:02]} 35. Qe4 {[%emt 0:00:09]} Qc6 {[%emt 0:00:05]} 36. Qxc6 Nxc6 {[%emt 0:00:02]} 37. Rf2 {[%emt 0:00:05]} Rd3 {[%emt 0:00:02]} 38. Na4 {[%emt 0:00:03]} b5 {[%emt 0:00:04]} 39. cxb5 {[%emt 0:00:01]} axb5 {[%emt 0:00:01]} 40. Nc5 {[%emt 0:00:07]} Rxa3 {[%emt 0:00:01]} 41. Rb2 {[%emt 0:00:01]} Nd4 {[%emt 0:00:03]} 42. f4 {[%emt 0:00:05]} Rc3 {[%emt 0:00:09]} 43. Ne4 {[%emt 0:00:03]} Rc2+ {[%emt 0:00:04]} 44. Rxc2 {[%emt 0:00:01]} Nxc2 {[%emt 0:00:01]} 45. Kf3 {[%emt 0:00:03]} Kf8 {[%emt 0:00:03]} 46. Ke2 {[%emt 0:00:02]} Nd4+ {[%emt 0:00:06]} 47. Kd3 {[%emt 0:00:02]} Nf3 {[%emt 0:00:04]} 48. h3 {[%emt 0:00:05]} Ng1 {[%emt 0:00:03]} 49. h4 {[%emt 0:00:02]} Ke7 {[%emt 0:00:02]} 50. Kc3 {[%emt 0:00:03]} f5 {[%emt 0:00:06]} 51. Nd2 {[%emt 0:00:05]} Ne2+ {[%emt 0:00:01]} 52. Kb4 {[%emt 0:00:01]} Nxg3 {[%emt 0:00:02]} 53. Kxb5 {[%emt 0:00:01]} Ne2 {[%emt 0:00:02]} 54. Kc6 {[%emt 0:00:02]} Nxf4 {[%emt 0:00:01]} 55. Nc4 {[%emt 0:00:01]} Ng2 {[%emt 0:00:02]} 56. h5 {[%emt 0:00:01]} Nf4 {[%emt 0:00:02]} 57. Ne5 {[%emt 0:00:04]} Nxh5 {[%emt 0:00:03]} 0-1

[Event "GER-chW Blitz 2019"]
[Site "Magdeburg"]
[Date "2019.05.25"]
[Round "5.6"]
[White "Kotyk, Valeriya"]
[Black "Daemering, Katrin"]
[Result "1-0"]
[ECO "A44"]
[WhiteElo "1739"]
[BlackElo "2003"]
[Annotator "NA"]
[PlyCount "83"]
[EventDate "2019.05.25"]
[EventType "tourn"]
[EventCountry "GER"]
[SourceTitle "playchess.com"]
[Source "ChessBase"]
[SourceQuality "1"]
[TimeControl "180+2"]

1. d4 {[%emt 0:00:00]} c5 {[%emt 0:00:00]} 2. d5 {[%emt 0:00:01]} e5 {[%emt 0:00:00]} 3. c4 {[%emt 0:00:01]} d6 {[%emt 0:00:01]} 4. Nc3 {[%emt 0:00:01]} g6 {[%emt 0:00:02]} 5. e4 {[%emt 0:00:02]} Bg7 {[%emt 0:00:01]} 6. Nf3 {[%emt 0:00:04]} Ne7 {[%emt 0:00:02]} 7. Be3 {[%emt 0:00:03]} O-O {[%emt 0:00:02]} 8. Qd2 {[%emt 0:00:13]} a6 {[%emt 0:00:13]} 9. Be2 {[%emt 0:00:05]} Nd7 {[%emt 0:00:02]} 10. O-O {[%emt 0:00:04]} Rb8 {[%emt 0:00:10]} 11. a4 {[%emt 0:00:03]} Nf6 {[%emt 0:00:15]} 12. Bh6 {[%emt 0:00:08]} Ne8 {[%emt 0:00:23]} 13. Bxg7 {[%emt 0:00:31]} Kxg7 {[%emt 0:00:02]} 14. Qc2 {[%emt 0:00:03]} h6 {[%emt 0:00:05]} 15. Nd2 {[%emt 0:00:01]} f5 {[%emt 0:00:04]} 16. f4 {[%emt 0:00:07]} fxe4 {[%emt 0:00:16]} 17. fxe5 {[%emt 0:00:07]} Bf5 {[%emt 0:00:13]} 18. e6 {[%emt 0:00:15]} Nf6 {[%emt 0:00:15]} 19. Qd1 {[%emt 0:00:06]} h5 {[%emt 0:00:19]} 20. h3 {[%emt 0:00:20]} e3 {[%emt 0:00:14]} 21. Nf3 {[%emt 0:00:08]} Qb6 {[%emt 0:00:13]} 22. b3 {[%emt 0:00:08]} Qb4 {[%emt 0:00:05]} 23. Rc1 {[%emt 0:00:04]} Rbd8 {[%emt 0:00:07]} 24. Ng5 {[%emt 0:00:03]} Rc8 {[%emt 0:00:16]} 25. Nf7 {[%emt 0:00:22]} Qb6 {[%emt 0:00:14]} 26. Bd3 {[%emt 0:00:07]} Bxd3 {[%emt 0:00:03]} 27. Qxd3 {[%emt 0:00:00]} Qxb3 {[%emt 0:00:04]} 28. Nxd6 {[%emt 0:00:02]} Rcd8 {[%emt 0:00:01]} 29. Nf7 {[%emt 0:00:02]} Rde8 {[%emt 0:00:03]} 30. Rb1 {[%emt 0:00:03]} Qa3 {[%emt 0:00:01]} 31. Ra1 {[%emt 0:00:02]} Qb4 {[%emt 0:00:02]} 32. Rfb1 {[%emt 0:00:01]} Qa5 {[%emt 0:00:00]} 33. Rxb7 {[%emt 0:00:02]} Nf5 {[%emt 0:00:04]} 34. Nd6+ {[%emt 0:00:03]} Re7 {[%emt 0:00:01]} 35. Nxf5+ {[%emt 0:00:04]} gxf5 {[%emt 0:00:02]} 36. Rxe7+ {[%emt 0:00:01]} Kg6 {[%emt 0:00:02]} 37. Rf1 {[%emt 0:00:05]} Nh7 {[%emt 0:00:04]} 38. Qxe3 {[%emt 0:00:03]} Qd8 {[%emt 0:00:02]} 39. Rd7 {[%emt 0:00:01]} Qe8 {[%emt 0:00:00]} 40. Ne2 {[%emt 0:00:04]} Ng5 {[%emt 0:00:02]} 41. Nf4+ {[%emt 0:00:02]} Kf6 {[%emt 0:00:01]} 42. Qc3# {[%emt 0:00:03]} 1-0

[Event "GER-chW Blitz 2019"]
[Site "Magdeburg"]
[Date "2019.05.25"]
[Round "5.7"]
[White "Fuchs, Judith"]
[Black "Kreismann, Franziska"]
[Result "1-0"]
[ECO "B06"]
[WhiteElo "2218"]
[BlackElo "1589"]
[Annotator "NA"]
[PlyCount "29"]
[EventDate "2019.05.25"]
[EventType "tourn"]
[EventCountry "GER"]
[SourceTitle "playchess.com"]
[Source "ChessBase"]
[SourceQuality "1"]
[TimeControl "180+2"]

1. d4 {[%emt 0:00:00]} g6 {[%emt 0:00:00]} 2. e4 {[%emt 0:00:02]} d6 {[%emt 0:00:01]} 3. Nc3 {[%emt 0:00:01]} Bg7 {[%emt 0:00:01]} 4. Bf4 {[%emt 0:00:01]} Nf6 {[%emt 0:00:02]} 5. Qd2 {[%emt 0:00:01]} O-O {[%emt 0:00:02]} 6. Bh6 {[%emt 0:00:03]} Re8 {[%emt 0:00:02]} 7. Bxg7 {[%emt 0:00:01]} Kxg7 {[%emt 0:00:01]} 8. O-O-O {[%emt 0:00:05]} e5 {[%emt 0:00:11]} 9. dxe5 {[%emt 0:01:01]} dxe5 {[%emt 0:00:09]} 10. Qxd8 {[%emt 0:00:03]} Rxd8 {[%emt 0:00:01]} 11. Rxd8 Nc6 12. Rd1 {[%emt 0:00:07]} Be6 {[%emt 0:00:01]} 13. Nf3 {[%emt 0:00:04]} a6 {[%emt 0:00:08]} 14. Ng5 {[%emt 0:00:03]} Bc4 {[%emt 0:00:10]} 15. Bxc4 1-0

[Event "GER-chW Blitz 2019"]
[Site "Magdeburg"]
[Date "2019.05.25"]
[Round "5.8"]
[White "Lubbe, Melanie"]
[Black "Kunze, Kerstin"]
[Result "1-0"]
[ECO "A45"]
[WhiteElo "2278"]
[BlackElo "2066"]
[Annotator "NA"]
[PlyCount "51"]
[EventDate "2019.05.25"]
[EventType "tourn"]
[EventCountry "GER"]
[SourceTitle "playchess.com"]
[Source "ChessBase"]
[SourceQuality "1"]
[TimeControl "180+2"]

1. d4 {[%emt 0:00:00]} Nf6 {[%emt 0:00:00]} 2. Nc3 {[%emt 0:00:00]} d5 {[%emt 0:00:02]} 3. Bf4 {[%emt 0:00:01]} c6 {[%emt 0:00:08]} 4. f3 {[%emt 0:00:01]} Nbd7 {[%emt 0:00:14]} 5. e4 {[%emt 0:00:16]} Nh5 {[%emt 0:00:19]} 6. Be3 {[%emt 0:00:00]} e6 {[%emt 0:00:11]} 7. a3 {[%emt 0:00:11]} Qh4+ {[%emt 0:00:27]} 8. Bf2 {[%emt 0:00:02]} Qd8 {[%emt 0:00:14]} 9. Nge2 {[%emt 0:00:12]} g6 {[%emt 0:00:21]} 10. g4 {[%emt 0:00:07]} Nhf6 {[%emt 0:00:07]} 11. e5 {[%emt 0:00:02]} Ng8 {[%emt 0:00:01]} 12. Qd2 {[%emt 0:00:10]} Be7 {[%emt 0:00:09]} 13. O-O-O {[%emt 0:00:04]} Nb6 {[%emt 0:00:11]} 14. Ng3 {[%emt 0:00:03]} Qc7 {[%emt 0:00:05]} 15. f4 {[%emt 0:00:01]} Bd7 {[%emt 0:00:04]} 16. Bd3 {[%emt 0:00:06]} h6 {[%emt 0:00:11]} 17. h4 {[%emt 0:00:06]} O-O-O {[%emt 0:00:02]} 18. f5 {[%emt 0:00:06]} gxf5 {[%emt 0:00:11]} 19. gxf5 {[%emt 0:00:01]} exf5 {[%emt 0:00:04]} 20. Nxf5 {[%emt 0:00:04]} Kb8 {[%emt 0:00:09]} 21. Rhg1 {[%emt 0:00:15]} Bxf5 {[%emt 0:00:05]} 22. Bxf5 {[%emt 0:00:00]} Nc4 {[%emt 0:00:00]} 23. Qe2 {[%emt 0:00:06]} Qb6 24. Na4 {[%emt 0:00:07]} Qa6 {[%emt 0:00:10]} 25. Nc5 {[%emt 0:00:19]} Bxc5 {[%emt 0:00:17]} 26. dxc5 {[%emt 0:00:01]} 1-0

[Event "GER-chW Blitz 2019"]
[Site "Magdeburg"]
[Date "2019.05.25"]
[Round "5.9"]
[White "Ries, Jutta"]
[Black "Gheng, Simona"]
[Result "1-0"]
[ECO "A02"]
[WhiteElo "2017"]
[BlackElo "1991"]
[Annotator "NA"]
[PlyCount "91"]
[EventDate "2019.05.25"]
[EventType "tourn"]
[EventCountry "GER"]
[SourceTitle "playchess.com"]
[Source "ChessBase"]
[SourceQuality "1"]
[TimeControl "180+2"]

1. f4 {[%emt 0:00:00]} c5 {[%emt 0:00:00]} 2. Nf3 {[%emt 0:00:02]} d6 {[%emt 0:00:00]} 3. b3 {[%emt 0:00:02]} Nf6 {[%emt 0:00:00]} 4. Bb2 {[%emt 0:00:01]} g6 {[%emt 0:00:01]} 5. e3 {[%emt 0:00:02]} Bg7 {[%emt 0:00:00]} 6. Bb5+ {[%emt 0:00:06]} Bd7 {[%emt 0:00:02]} 7. a4 {[%emt 0:00:10]} O-O {[%emt 0:00:02]} 8. O-O {[%emt 0:00:02]} a6 9. Bxd7 {[%emt 0:00:02]} Nbxd7 {[%emt 0:00:01]} 10. Nc3 {[%emt 0:00:25]} Rc8 {[%emt 0:00:01]} 11. Qe2 {[%emt 0:00:09]} e6 {[%emt 0:00:01]} 12. e4 {[%emt 0:00:09]} Qc7 {[%emt 0:00:15]} 13. Rae1 {[%emt 0:00:10]} d5 {[%emt 0:00:16]} 14. e5 {[%emt 0:00:12]} Ne8 {[%emt 0:00:11]} 15. Nd1 {[%emt 0:00:06]} c4 {[%emt 0:00:12]} 16. Ba3 {[%emt 0:00:02]} Nc5 {[%emt 0:00:05]} 17. d4 {[%emt 0:00:12]} cxd3 {[%emt 0:00:04]} 18. cxd3 {[%emt 0:00:01]} Nxb3 {[%emt 0:00:13]} 19. Bxf8 {[%emt 0:00:02]} Bxf8 {[%emt 0:00:01]} 20. Qb2 {[%emt 0:00:09]} Nc5 {[%emt 0:00:17]} 21. Qc2 {[%emt 0:00:04]} Qb6 {[%emt 0:00:06]} 22. Kh1 {[%emt 0:00:11]} Nc7 {[%emt 0:00:17]} 23. d4 {[%emt 0:00:06]} Nb3 {[%emt 0:00:20]} 24. Nf2 {[%emt 0:00:07]} Nxd4 {[%emt 0:00:08]} 25. Nxd4 {[%emt 0:00:10]} Qxd4 {[%emt 0:00:01]} 26. Ng4 {[%emt 0:00:12]} Be7 {[%emt 0:00:04]} 27. Rc1 {[%emt 0:00:08]} Bd8 {[%emt 0:00:02]} 28. Qb3 {[%emt 0:00:20]} Rb8 {[%emt 0:00:01]} 29. Nf6+ {[%emt 0:00:06]} Kg7 {[%emt 0:00:07]} 30. Nd7 {[%emt 0:00:05]} Ra8 {[%emt 0:00:22]} 31. Qxb7 Ra7 32. Qc8 {[%emt 0:00:04]} Ra8 {[%emt 0:00:02]} 33. Nb8 {[%emt 0:00:07]} a5 {[%emt 0:00:32]} 34. Qxd8 {[%emt 0:00:02]} Na6 {[%emt 0:00:00]} 35. Qf6+ {[%emt 0:00:03]} Kh6 36. Nd7 {[%emt 0:00:02]} Qxa4 {[%emt 0:00:07]} 37. Qg5+ {[%emt 0:00:03]} Kg7 {[%emt 0:00:01]} 38. Nf6 {[%emt 0:00:02]} h6 {[%emt 0:00:02]} 39. Nh5+ {[%emt 0:00:02]} Kh7 {[%emt 0:00:01]} 40. Nf6+ Kg7 41. Qg3 {[%emt 0:00:04]} Rb8 {[%emt 0:00:01]} 42. f5 {[%emt 0:00:02]} exf5 {[%emt 0:00:04]} 43. Rc3 {[%emt 0:00:08]} Qb5 {[%emt 0:00:02]} 44. Rcf3 {[%emt 0:00:02]} d4 {[%emt 0:00:04]} 45. h4 {[%emt 0:00:01]} Qxe5 {[%emt 0:00:02]} 46. Qxe5 {[%emt 0:00:02]} 1-0

[Event "GER-chW Blitz 2019"]
[Site "Magdeburg"]
[Date "2019.05.25"]
[Round "5.10"]
[White "Kushka, Alena"]
[Black "Kopylov, Luba"]
[Result "1/2-1/2"]
[ECO "D92"]
[WhiteElo "2148"]
[BlackElo "2078"]
[Annotator "NA"]
[PlyCount "85"]
[EventDate "2019.05.25"]
[EventType "tourn"]
[EventCountry "GER"]
[SourceTitle "playchess.com"]
[Source "ChessBase"]
[SourceQuality "1"]
[TimeControl "180+2"]

1. d4 {[%emt 0:00:00]} Nf6 {[%emt 0:00:00]} 2. c4 {[%emt 0:00:01]} g6 {[%emt 0:00:00]} 3. Nc3 {[%emt 0:00:01]} d5 {[%emt 0:00:01]} 4. Nf3 {[%emt 0:00:01]} Bg7 {[%emt 0:00:02]} 5. Bf4 {[%emt 0:00:01]} c6 {[%emt 0:00:02]} 6. e3 {[%emt 0:00:05]} Ne4 {[%emt 0:00:05]} 7. Bd3 {[%emt 0:00:10]} Nxc3 {[%emt 0:00:03]} 8. bxc3 {[%emt 0:00:01]} Nd7 {[%emt 0:00:13]} 9. O-O {[%emt 0:00:05]} O-O {[%emt 0:00:03]} 10. Rb1 {[%emt 0:00:09]} Nf6 {[%emt 0:00:04]} 11. Bg3 {[%emt 0:00:09]} Qa5 {[%emt 0:00:02]} 12. Qc2 {[%emt 0:00:12]} dxc4 {[%emt 0:00:11]} 13. Bxc4 {[%emt 0:00:02]} Bf5 {[%emt 0:00:02]} 14. Bd3 {[%emt 0:00:07]} Bxd3 {[%emt 0:00:07]} 15. Qxd3 {[%emt 0:00:01]} Qxa2 {[%emt 0:00:08]} 16. Rxb7 {[%emt 0:00:05]} Nd5 {[%emt 0:00:10]} 17. e4 {[%emt 0:00:36]} Nb6 {[%emt 0:00:30]} 18. Rxe7 {[%emt 0:00:02]} a5 {[%emt 0:00:23]} 19. Nd2 {[%emt 0:00:13]} a4 {[%emt 0:00:05]} 20. Rb7 {[%emt 0:00:03]} Nc8 {[%emt 0:00:13]} 21. Nc4 {[%emt 0:00:37]} a3 {[%emt 0:00:16]} 22. Rd1 {[%emt 0:00:14]} Ra4 {[%emt 0:00:07]} 23. Ne3 {[%emt 0:00:19]} c5 {[%emt 0:00:34]} 24. d5 {[%emt 0:00:08]} c4 {[%emt 0:00:02]} 25. Qf1 {[%emt 0:00:07]} Bxc3 {[%emt 0:00:03]} 26. Rc1 {[%emt 0:00:03]} Bb2 {[%emt 0:00:07]} 27. Rxc4 {[%emt 0:00:06]} Rxc4 {[%emt 0:00:02]} 28. Nxc4 {[%emt 0:00:01]} Bd4 {[%emt 0:00:06]} 29. h3 {[%emt 0:00:14]} Qc2 {[%emt 0:00:02]} 30. Nxa3 {[%emt 0:00:02]} Qxe4 {[%emt 0:00:01]} 31. Nb5 {[%emt 0:00:02]} Qxd5 {[%emt 0:00:04]} 32. Rb8 {[%emt 0:00:03]} Be5 {[%emt 0:00:02]} 33. Bxe5 {[%emt 0:00:02]} Qxe5 {[%emt 0:00:01]} 34. Rb7 {[%emt 0:00:02]} Nd6 {[%emt 0:00:02]} 35. Nxd6 {[%emt 0:00:01]} Qxd6 {[%emt 0:00:01]} 36. Rb3 {[%emt 0:00:02]} Qd5 {[%emt 0:00:01]} 37. Rf3 {[%emt 0:00:01]} Rc8 {[%emt 0:00:01]} 38. Rd3 {[%emt 0:00:02]} Qg5 {[%emt 0:00:02]} 39. Rd1 {[%emt 0:00:01]} Rc2 {[%emt 0:00:02]} 40. Qd3 {[%emt 0:00:02]} Ra2 {[%emt 0:00:04]} 41. Qd8+ {[%emt 0:00:01]} Qxd8 {[%emt 0:00:01]} 42. Rxd8+ {[%emt 0:00:01]} Kg7 {[%emt 0:00:01]} 43. Rd3 {[%emt 0:00:03]} 1/2-1/2

[Event "GER-chW Blitz 2019"]
[Site "Magdeburg"]
[Date "2019.05.25"]
[Round "5.11"]
[White "Schulze, Lara"]
[Black "Zimmer, Elke"]
[Result "1-0"]
[ECO "C50"]
[WhiteElo "2160"]
[BlackElo "1926"]
[Annotator "NA"]
[PlyCount "86"]
[EventDate "2019.05.25"]
[EventType "tourn"]
[EventCountry "GER"]
[SourceTitle "playchess.com"]
[Source "ChessBase"]
[SourceQuality "1"]
[TimeControl "180+2"]

1. e4 {[%emt 0:00:00]} e5 {[%emt 0:00:00]} 2. Nf3 {[%emt 0:00:00]} Nc6 {[%emt 0:00:00]} 3. Bc4 {[%emt 0:00:01]} Nf6 {[%emt 0:00:06]} 4. d3 {[%emt 0:00:01]} Bc5 {[%emt 0:00:04]} 5. c3 {[%emt 0:00:01]} d6 {[%emt 0:00:02]} 6. Nbd2 {[%emt 0:00:08]} O-O {[%emt 0:00:05]} 7. O-O {[%emt 0:00:11]} Na5 {[%emt 0:00:04]} 8. Bb5 {[%emt 0:00:01]} a6 {[%emt 0:00:05]} 9. Ba4 {[%emt 0:00:03]} b5 {[%emt 0:00:05]} 10. Bc2 {[%emt 0:00:01]} Nc6 {[%emt 0:00:01]} 11. h3 {[%emt 0:00:13]} Ba7 {[%emt 0:00:05]} 12. Re1 {[%emt 0:00:08]} Bb7 {[%emt 0:00:02]} 13. Nf1 {[%emt 0:00:03]} h6 {[%emt 0:00:05]} 14. d4 {[%emt 0:00:06]} Re8 {[%emt 0:00:16]} 15. Ng3 {[%emt 0:00:09]} Bc8 {[%emt 0:00:18]} 16. a4 {[%emt 0:00:16]} exd4 17. cxd4 {[%emt 0:00:20]} bxa4 {[%emt 0:00:59]} 18. Bxa4 {[%emt 0:00:10]} Bd7 {[%emt 0:00:01]} 19. Bc2 {[%emt 0:00:50]} Nb4 {[%emt 0:00:04]} 20. Bb3 {[%emt 0:00:02]} Be6 {[%emt 0:00:07]} 21. d5 {[%emt 0:00:07]} Bd7 {[%emt 0:00:03]} 22. Qd2 {[%emt 0:00:15]} Bc5 {[%emt 0:00:04]} 23. Nd4 {[%emt 0:00:16]} a5 {[%emt 0:00:24]} 24. Nc2 {[%emt 0:00:11]} Qc8 {[%emt 0:00:22]} 25. Qe2 {[%emt 0:00:04]} Nfxd5 {[%emt 0:00:07]} 26. Bxd5 {[%emt 0:00:08]} Nxd5 {[%emt 0:00:01]} 27. Qc4 {[%emt 0:00:06]} Nb6 {[%emt 0:00:05]} 28. Qd3 {[%emt 0:00:01]} Be6 {[%emt 0:00:03]} 29. Nd4 Bxd4 {[%emt 0:00:02]} 30. Qxd4 {[%emt 0:00:02]} Nc4 {[%emt 0:00:07]} 31. Ne2 {[%emt 0:00:02]} Rb8 {[%emt 0:00:06]} 32. Nc3 {[%emt 0:00:01]} Nxb2 {[%emt 0:00:02]} 33. Rxa5 {[%emt 0:00:03]} Nc4 {[%emt 0:00:04]} 34. Ra4 {[%emt 0:00:01]} Nb6 {[%emt 0:00:01]} 35. Ra1 {[%emt 0:00:01]} Nd7 {[%emt 0:00:04]} 36. Nd5 {[%emt 0:00:01]} Bxd5 37. Qxd5 {[%emt 0:00:01]} Nf6 {[%emt 0:00:03]} 38. Qd4 {[%emt 0:00:01]} Qb7 {[%emt 0:00:03]} 39. f3 {[%emt 0:00:03]} Qb6 {[%emt 0:00:01]} 40. Be3 {[%emt 0:00:01]} Qxd4 {[%emt 0:00:02]} 41. Bxd4 {[%emt 0:00:00]} Rb7 {[%emt 0:00:05]} 42. Rec1 {[%emt 0:00:03]} c5 {[%emt 0:00:03]} 43. Be3 {[%emt 0:00:03]} Rd8 1-0

[Event "GER-chW Blitz 2019"]
[Site "Magdeburg"]
[Date "2019.05.25"]
[Round "5.12"]
[White "Braje, Monika"]
[Black "Mader, Lena"]
[Result "0-1"]
[ECO "B13"]
[WhiteElo "1781"]
[BlackElo "1839"]
[Annotator "NA"]
[PlyCount "110"]
[EventDate "2019.05.25"]
[EventType "tourn"]
[EventCountry "GER"]
[SourceTitle "playchess.com"]
[Source "ChessBase"]
[SourceQuality "1"]
[TimeControl "180+2"]

1. e4 {[%emt 0:00:00]} c6 {[%emt 0:00:00]} 2. d4 {[%emt 0:00:01]} d5 {[%emt 0:00:00]} 3. exd5 {[%emt 0:00:01]} cxd5 {[%emt 0:00:00]} 4. Bd3 {[%emt 0:00:01]} Nf6 {[%emt 0:00:05]} 5. h3 {[%emt 0:00:02]} Nc6 {[%emt 0:00:02]} 6. c3 {[%emt 0:00:00]} g6 {[%emt 0:00:01]} 7. Bf4 {[%emt 0:00:06]} Bg7 {[%emt 0:00:02]} 8. Nf3 {[%emt 0:00:02]} O-O {[%emt 0:00:01]} 9. O-O {[%emt 0:00:02]} Bf5 {[%emt 0:00:06]} 10. Bb5 {[%emt 0:00:09]} Qb6 {[%emt 0:00:13]} 11. Qe2 {[%emt 0:00:17]} e6 {[%emt 0:00:27]} 12. Bd6 {[%emt 0:00:09]} Rfd8 {[%emt 0:00:11]} 13. Bc5 {[%emt 0:00:01]} Qc7 {[%emt 0:00:03]} 14. Nbd2 {[%emt 0:00:11]} b6 {[%emt 0:00:26]} 15. Ba3 {[%emt 0:00:09]} a6 16. Ba4 {[%emt 0:00:05]} b5 {[%emt 0:00:16]} 17. Bd1 {[%emt 0:00:03]} Ne4 {[%emt 0:00:27]} 18. Nxe4 {[%emt 0:00:09]} Bxe4 {[%emt 0:00:01]} 19. Nd2 {[%emt 0:00:05]} Na5 {[%emt 0:00:17]} 20. f3 {[%emt 0:00:09]} Bf5 {[%emt 0:00:07]} 21. g4 {[%emt 0:00:16]} Qg3+ {[%emt 0:00:08]} 22. Qg2 {[%emt 0:00:01]} Qxg2+ {[%emt 0:00:00]} 23. Kxg2 {[%emt 0:00:01]} Bd3 {[%emt 0:00:01]} 24. Rf2 {[%emt 0:00:01]} Nc4 {[%emt 0:00:09]} 25. Nxc4 {[%emt 0:00:09]} bxc4 {[%emt 0:00:02]} 26. Bc5 {[%emt 0:00:18]} Bf8 {[%emt 0:00:07]} 27. Bxf8 {[%emt 0:00:03]} Kxf8 {[%emt 0:00:01]} 28. Rd2 {[%emt 0:00:03]} Rab8 {[%emt 0:00:01]} 29. Rc1 {[%emt 0:00:02]} Rb7 {[%emt 0:00:05]} 30. b3 {[%emt 0:00:06]} Rdb8 {[%emt 0:00:04]} 31. Kf2 {[%emt 0:00:07]} a5 {[%emt 0:00:04]} 32. h4 {[%emt 0:00:06]} Ke7 {[%emt 0:00:03]} 33. f4 {[%emt 0:00:07]} a4 {[%emt 0:00:04]} 34. b4 a3 {[%emt 0:00:02]} 35. Bf3 {[%emt 0:00:12]} Rc7 {[%emt 0:00:07]} 36. Re1 {[%emt 0:00:02]} Kf6 {[%emt 0:00:03]} 37. g5+ {[%emt 0:00:02]} Kg7 {[%emt 0:00:01]} 38. h5 {[%emt 0:00:02]} h6 {[%emt 0:00:04]} 39. gxh6+ {[%emt 0:00:02]} Kxh6 {[%emt 0:00:01]} 40. hxg6 {[%emt 0:00:03]} Kxg6 {[%emt 0:00:00]} 41. Rg1+ {[%emt 0:00:03]} Kf6 {[%emt 0:00:01]} 42. Ke3 {[%emt 0:00:01]} Rcc8 {[%emt 0:00:02]} 43. Rh2 {[%emt 0:00:03]} Rg8 {[%emt 0:00:02]} 44. Rgh1 {[%emt 0:00:07]} Rg7 {[%emt 0:00:02]} 45. Rh6+ {[%emt 0:00:02]} Ke7 {[%emt 0:00:01]} 46. Rh7 {[%emt 0:00:04]} Bxh7 {[%emt 0:00:01]} 47. Rh2 {[%emt 0:00:05]} Bd3 {[%emt 0:00:01]} 48. Rf2 {[%emt 0:00:04]} Rbg8 {[%emt 0:00:01]} 49. b5 {[%emt 0:00:02]} Rg3 {[%emt 0:00:01]} 50. b6 Rb8 {[%emt 0:00:02]} 51. Rh2 {[%emt 0:00:08]} Rxb6 {[%emt 0:00:01]} 52. Kf2 {[%emt 0:00:01]} Rg7 {[%emt 0:00:02]} 53. Bd1 {[%emt 0:00:04]} Rb2+ {[%emt 0:00:01]} 54. Ke1 Rxh2 55. Ba4 {[%emt 0:00:11]} Rg1# {[%emt 0:00:02]} 0-1